bitfinex-derivatives/quotes_ETHF0:USTF0_20250810
["timestamp","ask_amount","ask_price","bid_price","bid_amount"]
[1754846308128,24.01405688,4238.2,4238.1,1.5415]
[1754846311024,1.5565,4237.8,4237.7,1.0108]
[1754846311371,1.5565,4237.8,4236.0,1.1802]
[1754846311372,0.2568,4237.4,4236.0,1.1802]
[1754846311516,0.1746,4236.8,4236.7,0.9598]
[1754846311721,0.2568,4237.1,4237.0,0.4878]
[1754846311927,0.2568,4237.1,4237.0,0.95978]
[1754846312136,22.1108,4237.3,4237.2,0.95975]
[1754846312331,22.18027003,4237.3,4237.2,0.95975]
[1754846312929,0.32627003,4237.3,4237.2,0.95975]
[1754846313239,0.06947003,4237.3,4237.2,0.9884]
[1754846313539,0.32627003,4237.3,4237.2,0.9884]
[1754846313838,0.32627003,4237.3,4237.2,0.9567]
[1754846314631,1.21457003,4237.3,4237.2,0.9567]
[1754846315337,1.62597003,4237.3,4237.2,0.9567]
[1754846315835,1.62597003,4237.3,4237.0,0.47197]
[1754846315836,0.6498,4237.0,4236.9,0.4689]
[1754846316034,1.5915,4237.0,4236.9,0.6172]
[1754846316336,1.5915,4237.0,4236.9,0.8374]
[1754846316337,1.66097003,4237.0,4236.9,0.8374]
[1754846317134,1.66097003,4237.0,4236.9,0.9433]
[1754846319937,1.66097003,4237.0,4236.9,0.8374]
[1754846320141,1.66097003,4237.0,4236.9,0.2542]
[1754846322044,1.66097003,4237.0,4236.8,0.47199]
[1754846322341,1.5915,4236.8,4236.7,0.668]
[1754846322648,1.5915,4236.8,4236.3,1.14005]
[1754846322649,1.5915,4236.4,4236.3,1.14005]
[1754846322943,1.5915,4236.4,4236.3,1.41535]
[1754846323541,1.66097003,4236.4,4236.3,1.41535]
[1754846323937,0.06947003,4236.4,4236.3,1.41535]
[1754846324137,0.06947003,4236.4,4236.3,1.44705]
[1754846324339,0.2791,4237.3,4237.2,0.1694]
[1754846324642,0.2791,4237.3,4237.2,0.8547]
[1754846324853,0.2791,4237.3,4237.2,1.32665]
[1754846325042,21.847,4237.5,4237.4,0.89553]
[1754846325243,22.5779,4237.5,4237.4,0.89553]
[1754846325440,23.4385,4237.5,4237.4,0.4236]
[1754846325647,0.2791,4238.1,4238.0,0.47187]
[1754846325950,0.2791,4238.1,4238.0,0.8547]
[1754846326944,0.2791,4238.8,4238.7,0.72598]
[1754846327142,0.2791,4238.8,4238.7,0.89538]
[1754846327646,0.2791,4238.8,4238.7,1.32648]
[1754846328748,0.7266,4238.8,4238.7,0.8547]
[1754846328946,0.9132,4238.8,4238.7,0.8547]
[1754846329146,1.1932,4238.8,4238.7,0.8547]
[1754846330051,1.1932,4238.8,4238.7,0.7488]
[1754846330245,1.5915,4238.7,4238.6,1.00129]
[1754846330839,1.5915,4238.7,4238.6,1.32649]
[1754846331549,1.1932,4238.7,4238.6,0.2542]
[1754846331741,1.5915,4238.7,4238.6,0.2542]
[1754846332139,0.6498,4238.0,4237.9,0.4235]
[1754846332351,1.1932,4238.0,4237.9,0.4235]
[1754846332647,1.1932,4238.0,4237.9,0.89538]
[1754846332648,1.5915,4238.0,4237.9,0.89538]
[1754846332948,1.5915,4238.0,4237.9,1.22048]
[1754846333850,1.5915,4238.0,4237.9,1.32628]
[1754846334352,0.2643,4238.4,4238.3,0.1693]
[1754846334648,1.0481,4238.6,4238.5,0.89531]
[1754846334848,1.3124,4238.6,4238.5,1.32621]
[1754846335049,1.5915,4238.6,4238.5,1.32621]
[1754846335753,1.5915,4238.6,4238.5,0.7486]
[1754846335941,1.5915,4238.6,4238.5,0.3251]
[1754846336140,21.839,4238.8,4238.4,0.1693]
[1754846336345,21.839,4238.8,4237.8,1.17971]
[1754846336346,22.1181,4238.8,4238.7,1.32619]
[1754846336651,22.5656,4238.8,4238.7,1.32619]
[1754846336946,23.0322,4238.8,4238.7,1.32619]
[1754846337251,23.4305,4238.8,4238.7,1.32619]
[1754846337451,23.4305,4238.8,4238.7,1.22039]
[1754846338652,23.0322,4238.8,4238.7,1.32619]
[1754846338849,0.2791,4238.8,4238.7,1.32619]
[1754846339651,0.4623,4238.8,4238.7,1.32619]
[1754846339844,1.1932,4238.8,4238.7,1.32619]
[1754846340045,1.5915,4238.8,4238.7,1.32619]
[1754846341843,1.5915,4238.8,4238.7,0.8544]
[1754846342050,1.5915,4238.8,4238.7,0.7486]
[1754846342254,0.6498,4238.8,4238.6,0.4718]
[1754846342562,0.6498,4238.8,4237.9,2.901]
[1754846342563,1.5915,4238.4,4238.3,0.47183]
[1754846342752,1.5915,4238.0,4237.9,2.901]
[1754846342949,0.4632,4237.7,4237.5,0.4309]
[1754846343149,1.5915,4237.5,4237.4,0.47193]
[1754846343351,1.1932,4237.4,4237.3,0.72615]
[1754846343551,1.5915,4237.4,4237.3,1.22055]
[1754846344056,1.5915,4237.4,4236.9,0.3251]
[1754846344257,0.6498,4237.0,4236.9,1.0513]
[1754846344551,0.9289,4237.6,4237.5,0.4235]
[1754846344854,1.5915,4237.6,4237.5,0.8544]
[1754846345150,0.5434,4237.5,4236.6,0.1058]
[1754846345350,0.52070701,4238.3,4236.7,1.22062]
[1754846345351,0.6414,4236.8,4236.7,1.22062]
[1754846345550,1.5672,4236.8,4236.7,1.32662]
[1754846345948,0.6278,4237.2,4237.1,0.90767]
[1754846346149,1.1595,4237.2,4237.1,1.33917]
[1754846346351,0.2601,4237.2,4237.1,1.33917]
[1754846346850,0.6657,4237.7,4237.6,0.47192]
[1754846347149,1.2975,4237.7,4237.6,1.33912]
[1754846347557,1.5576,4237.7,4237.6,1.33912]
[1754846352554,1.5576,4237.7,4237.6,1.23312]
[1754846353357,1.5576,4237.7,4237.6,1.33912]
[1754846354556,1.5576,4237.7,4237.6,1.23312]
[1754846354857,1.5576,4237.7,4237.6,0.47192]
[1754846355458,1.5576,4237.7,4237.2,0.3255]
[1754846355459,0.6318,4237.7,4237.5,0.47193]
[1754846355660,1.5576,4237.6,4237.5,0.47193]
[1754846356462,0.6318,4237.6,4237.3,0.47194]
[1754846356660,0.6318,4237.4,4237.2,0.47196]
[1754846356863,1.5576,4237.3,4237.2,0.47196]
[1754846358058,1.5576,4237.3,4237.2,1.23316]
[1754846358464,1.5576,4237.3,4237.2,1.33916]
[1754846359059,0.2601,4237.3,4237.2,1.33916]
[1754846360859,0.7087,4237.3,4237.2,1.33916]
[1754846361465,0.2601,4237.3,4237.2,1.33916]
[1754846361775,0.3981,4237.7,4237.2,1.33916]
[1754846361776,0.2601,4238.2,4238.1,0.47186]
[1754846361963,0.7087,4238.2,4238.1,1.33906]
[1754846362159,0.2601,4238.2,4238.1,1.33906]
[1754846362959,0.8919,4238.2,4238.1,1.33906]
[1754846363162,1.5576,4238.2,4238.1,0.47186]
[1754846363563,1.5576,4238.2,4238.1,1.06336]
[1754846363759,1.5576,4238.2,4238.1,1.23306]
[1754846363956,1.5576,4238.2,4238.1,1.33906]
[1754846365266,1.5576,4238.2,4238.1,1.23306]
[1754846365467,1.5576,4238.1,4238.0,0.47188]
[1754846365666,1.38033178,4238.1,4237.9,0.47188]
[1754846365869,1.5576,4238.0,4237.9,0.47188]
[1754846366769,1.37128,4238.0,4237.8,0.4719]
[1754846366964,1.37128,4238.0,4237.4,0.47195]
[1754846366965,1.5576,4237.5,4237.4,0.47195]
[1754846368765,1.5576,4238.1,4238.0,0.47187]
[1754846369165,1.5576,4238.1,4238.0,1.33907]
[1754846370272,0.2601,4238.1,4238.0,1.33907]
[1754846370574,1.1595,4238.1,4238.0,1.33907]
[1754846370773,1.5576,4238.1,4238.0,1.33907]
[1754846371369,0.2601,4238.1,4238.0,1.33907]
[1754846372268,0.4486,4238.4,4238.3,1.33905]
[1754846372475,0.8994,4238.4,4238.3,1.33905]
[1754846372866,1.5576,4238.4,4238.3,1.33905]
[1754846373262,1.5576,4238.4,4238.3,0.47185]
[1754846376073,1.5365,4238.3,4238.2,0.47186]
[1754846377172,2.06158807,4239.2,4239.1,0.47177]
[1754846377374,1.5365,4239.2,4239.1,0.47177]
[1754846378873,1.5365,4239.2,4239.1,1.06447]
[1754846380475,1.5365,4238.4,4238.0,0.1057]
[1754846380675,6.0,4239.2,4237.8,1.50477]
[1754846380676,1.5365,4238.3,4238.2,1.33947]
[1754846380876,0.2589,4238.3,4238.2,1.33947]
[1754846381875,0.9146,4239.4,4238.4,0.4307]
[1754846382072,0.6219,4239.2,4239.1,0.47176]
[1754846382276,1.5365,4239.2,4239.1,1.33936]
[1754846382584,1.5365,4239.2,4239.1,1.23366]
[1754846382785,1.5365,4239.2,4239.1,0.47176]
[1754846388285,2.28501281,4239.2,4239.1,0.47176]
[1754846388690,1.5365,4239.1,4239.0,0.47177]
[1754846390593,1.5365,4239.1,4239.0,0.64097]
[1754846390990,1.5365,4239.1,4239.0,1.23367]
[1754846391392,1.5365,4239.1,4239.0,1.33937]
[1754846391588,1.5365,4239.1,4239.0,0.79677]
[1754846391895,1.5365,4239.1,4239.0,0.47177]
[1754846392290,1.5365,4239.1,4239.0,1.06447]
[1754846392496,1.5365,4239.1,4239.0,1.23367]
[1754846392698,1.5365,4239.1,4239.0,1.33937]
[1754846394399,1.5365,4239.1,4239.0,1.23367]
[1754846395096,1.5365,4239.1,4239.0,0.47177]
[1754846395804,1.5365,4239.1,4239.0,1.33937]
[1754846397303,1.5365,4239.1,4239.0,1.23367]
[1754846398196,1.5365,4239.1,4239.0,1.33937]
[1754846399302,0.8808,4239.1,4239.0,1.23367]
[1754846399602,0.47168,4239.9,4239.4,0.47173]
[1754846399797,1.37041281,4239.5,4239.4,0.47173]
[1754846399993,1.62931281,4239.5,4239.4,0.47173]
[1754846400197,1.62931281,4239.5,4239.4,1.23363]
[1754846400198,2.28501281,4239.5,4239.4,1.23363]
[1754846400505,2.28501281,4239.5,4239.4,1.33933]
[1754846400705,2.28501281,4239.5,4239.4,0.79673]
[1754846400912,2.28501281,4239.5,4239.4,1.06443]
[1754846401296,0.6219,4239.3,4239.2,0.47175]
[1754846401506,1.5365,4239.3,4239.2,0.47175]
[1754846402208,1.1467,4239.3,4239.2,1.23365]
[1754846402407,0.6557,4239.8,4239.3,0.325]
[1754846402599,0.6557,4239.8,4239.1,1.17941]
[1754846402600,1.1467,4239.5,4239.4,1.33934]
[1754846403308,0.4429,4239.5,4239.4,1.33934]
[1754846403507,1.5365,4239.5,4239.4,1.33934]
[1754846403904,0.6983,4239.5,4239.4,1.33934]
[1754846404108,0.6983,4239.5,4238.8,2.12397103]
[1754846404109,0.2589,4239.4,4238.8,2.12397103]
[1754846404297,1.17923,4239.9,4238.8,1.0144]
[1754846404298,1.5365,4238.9,4238.8,1.0144]
[1754846404609,1.5365,4238.9,4238.8,1.3394]
[1754846405029,1.1467,4238.9,4238.8,1.3394]
[1754846405408,0.8913,4238.9,4238.8,1.3394]
[1754846405800,1.5491,4238.9,4238.8,1.3394]
[1754846407911,1.1619,4238.9,4238.8,1.3394]
[1754846408111,1.5491,4238.9,4238.8,1.3394]
[1754846409404,1.1619,4238.9,4238.8,1.3394]
[1754846410010,1.5491,4238.9,4238.8,1.3394]
[1754846410223,1.1619,4238.9,4238.8,1.3394]
[1754846410511,0.6994,4239.3,4239.2,1.35136]
[1754846410812,0.2666,4239.3,4239.2,1.35136]
[1754846413007,1.79800534,4239.8,4239.7,0.9204]
[1754846413205,1.5414,4239.8,4239.7,1.3513]
[1754846413406,1.1542,4239.8,4239.7,1.3513]
[1754846413910,1.5414,4239.8,4239.7,1.3513]
[1754846416804,1.1542,4239.8,4239.7,1.3513]
[1754846417112,0.2666,4239.8,4239.7,1.3513]
[1754846417512,22.6956,4240.4,4240.3,1.24544]
[1754846417704,22.6956,4240.4,4240.3,1.35124]
[1754846417705,23.3354,4240.4,4240.3,1.35124]
[1754846417909,1.5414,4240.3,4240.2,0.47164]
[1754846418107,2.28991281,4240.3,4240.2,0.47164]
[1754846418302,0.6398,4240.2,4240.1,0.47165]
[1754846418503,0.6398,4240.2,4239.3,2.87264103]
[1754846418504,0.635,4240.2,4239.3,2.87264103]
[1754846418709,1.1542,4239.4,4239.3,0.92045]
[1754846419010,1.5414,4239.4,4239.3,1.24555]
[1754846419712,1.5414,4239.4,4239.3,0.47175]
[1754846419907,1.5414,4239.4,4239.3,1.07635]
[1754846420210,1.5414,4239.4,4239.3,0.47175]
[1754846421313,0.6994,4239.5,4239.4,1.35134]
[1754846421622,1.5414,4239.5,4239.4,1.35134]
[1754846422406,0.2666,4239.5,4239.4,1.35134]
[1754846422608,21.791,4240.2,4239.4,1.35134]
[1754846422609,1.2748,4240.5,4240.4,0.47162]
[1754846422804,1.2748,4240.4,4240.3,0.47163]
[1754846423012,1.79567616,4240.4,4240.3,0.47163]
[1754846423313,2.06227616,4240.4,4240.3,0.47163]
[1754846423516,1.5414,4240.4,4240.3,1.24543]
[1754846423815,1.5414,4240.4,4240.3,1.35123]
[1754846425713,1.1542,4240.4,4240.3,1.35123]
[1754846425920,0.2666,4240.4,4240.3,1.35123]
[1754846426510,0.2526,4240.7,4240.6,1.3512]
[1754846426511,0.2666,4240.7,4240.6,1.3512]
[1754846426822,1.1542,4240.7,4240.6,1.3512]
[1754846427117,1.5414,4240.7,4240.6,1.2454]
[1754846427711,1.5414,4240.7,4240.6,1.3512]
[1754846428012,0.2666,4241.4,4241.2,0.47153]
[1754846428214,0.635,4241.3,4241.2,0.75103]
[1754846428409,1.5414,4241.3,4241.2,1.24533]
[1754846428615,1.5414,4241.3,4241.1,0.47154]
[1754846428811,21.788,4241.5,4240.9,0.47157]
[1754846428812,0.8876,4241.0,4240.9,0.47157]
[1754846429009,0.9064,4240.9,4240.6,0.4716]
[1754846429214,1.5414,4240.7,4240.6,0.4716]
[1754846429613,0.635,4240.3,4240.2,0.47164]
[1754846429816,1.5414,4240.3,4240.2,0.47164]
[1754846430007,1.5414,4240.2,4240.1,0.47166]
[1754846431118,1.5414,4239.7,4239.6,2.44449103]
[1754846431323,1.5414,4239.7,4239.6,0.75122]
[1754846431522,1.5414,4239.7,4239.6,1.07692]
[1754846431727,1.5414,4239.7,4239.6,1.35302]
[1754846432224,1.5414,4239.7,4239.6,1.24682]
[1754846432717,0.9064,4239.6,4239.5,0.47173]
[1754846433056,1.5414,4239.6,4239.5,0.47173]
[1754846433425,1.5414,4239.6,4239.5,1.24683]
[1754846433723,1.5414,4239.6,4239.5,1.35303]
[1754846434423,1.5414,4239.6,4239.5,1.07693]
[1754846434622,1.5414,4239.6,4239.5,1.24683]
[1754846435021,1.5414,4239.6,4239.5,0.7751]
[1754846435419,1.5414,4239.6,4239.5,1.35273]
[1754846436622,1.1542,4239.6,4239.5,1.35273]
[1754846436816,0.2666,4239.6,4239.5,1.35273]
[1754846437519,1.5945,4239.6,4239.5,0.881]
[1754846437723,1.5831,4238.9,4238.8,0.3252]
[1754846437927,1.5831,4238.9,4238.8,0.797]
[1754846438129,1.5831,4238.9,4238.8,1.0752]
[1754846438422,1.3131,4238.9,4238.7,0.47182]
[1754846438617,1.5831,4238.8,4238.7,1.24462]
[1754846439021,1.5831,4238.8,4238.7,0.75002]
[1754846439218,1.11331,4238.8,4238.2,1.69327103]
[1754846439418,0.4416,4239.0,4238.9,0.4718]
[1754846439625,0.2552,4239.0,4238.9,1.3505]
[1754846440929,1.1667,4239.0,4238.9,1.3505]
[1754846441126,1.5831,4239.0,4238.9,0.4718]
[1754846441523,1.5831,4238.9,4238.8,0.4718]
[1754846444029,1.1667,4238.9,4238.8,0.4718]
[1754846444232,0.4416,4238.9,4238.8,1.3505]
[1754846444923,0.27,4239.2,4238.8,2.05823]
[1754846445125,0.47171,4239.7,4239.5,0.47172]
[1754846445445,1.5831,4239.6,4239.5,1.24452]
[1754846445732,1.5831,4239.6,4239.5,1.35042]
[1754846445928,1.5831,4239.6,4239.5,1.24452]
[1754846447230,0.9416,4239.5,4239.4,0.47173]
[1754846447428,1.5831,4239.5,4239.4,0.47173]
[1754846447626,1.5831,4239.5,4239.4,1.07513]
[1754846447827,1.5831,4239.5,4239.4,1.24453]
[1754846448333,1.5831,4239.5,4239.4,0.47173]
[1754846448531,1.3131,4238.7,4238.6,2.16510103]
[1754846448735,1.5831,4238.7,4238.6,0.47183]
[1754846449330,1.5831,4238.7,4238.3,1.69327103]
[1754846449529,1.5831,4238.4,4238.3,2.16513103]
[1754846449729,1.5831,4238.4,4238.3,1.24466]
[1754846450128,1.5831,4238.4,4238.3,1.35056]
[1754846450531,1.5831,4238.4,4238.3,0.75006]
[1754846450731,1.5831,4238.4,4238.3,0.47186]
[1754846451326,1.5831,4238.4,4238.3,1.07526]
[1754846451531,1.5831,4238.4,4238.3,1.24466]
[1754846451733,1.5831,4238.4,4238.3,1.35056]
[1754846452437,0.4416,4238.4,4238.3,1.35056]
[1754846452631,0.2552,4238.4,4238.3,1.35056]
[1754846452938,0.2552,4238.7,4238.6,0.8787]
[1754846453136,0.2552,4238.7,4238.6,1.35053]
[1754846453344,1.1667,4238.7,4238.6,1.35053]
[1754846454633,1.5831,4238.7,4238.6,1.07523]
[1754846456532,1.5831,4238.7,4238.6,1.24463]
[1754846456734,1.5831,4238.7,4238.6,1.35053]
[1754846458041,1.1667,4238.7,4238.6,1.35053]
[1754846459639,1.5831,4238.7,4238.6,1.35053]
[1754846459941,0.7139,4238.7,4238.6,1.35053]
[1754846460331,0.9839,4238.7,4238.6,3.04380103]
[1754846460530,1.1667,4238.7,4238.6,3.04380103]
[1754846460841,1.5831,4238.7,4238.6,3.04380103]
[1754846461667,1.5831,4238.7,4238.6,1.35053]
[1754846461934,0.9416,4238.3,4238.2,2.16514103]
[1754846462132,1.5831,4238.3,4238.2,0.47187]
[1754846463137,1.5831,4238.3,4238.1,1.69327103]
[1754846463138,0.6864,4238.2,4238.1,0.47188]
[1754846463337,0.47189,4238.1,4237.9,1.69327103]
[1754846463546,1.11341,4237.9,4237.6,1.69327103]
[1754846463746,1.5831,4237.7,4237.6,0.47194]
[1754846465148,1.4003,4237.6,4237.5,0.47193]
[1754846465351,1.5831,4237.6,4237.5,0.47193]
[1754846466148,1.5831,4237.6,4237.5,0.79643]
[1754846466648,1.5831,4237.6,4237.5,1.05173]
[1754846467741,1.5831,4237.6,4237.2,1.79917103]
[1754846467742,0.6552,4237.5,4237.2,1.69327103]
[1754846467948,1.5357,4237.3,4237.2,1.05177]
[1754846468555,1.5357,4237.3,4237.2,0.47197]
[1754846469859,1.5357,4237.3,4237.2,0.79647]
[1754846472076,0.626,4237.1,4237.0,0.47199]
[1754846472257,1.5357,4237.1,4237.0,0.47199]
[1754846472455,1.5357,4237.1,4237.0,0.79649]
[1754846472758,1.5357,4237.1,4237.0,1.32579]
[1754846474758,1.5357,4237.1,4237.0,0.8538]
[1754846475062,1.5357,4237.0,4236.9,0.472]
[1754846475258,0.626,4237.0,4236.7,2.16529103]
[1754846475454,0.626,4236.8,4236.6,2.48980103]
[1754846475664,1.5357,4236.7,4236.6,2.91370103]
[1754846475957,1.5357,4236.7,4236.6,3.01910103]
[1754846476151,1.5357,4236.7,4236.6,1.32583]
[1754846476357,0.6966,4237.3,4237.2,0.4239]
[1754846476557,1.5357,4237.3,4237.2,0.8538]
[1754846477761,1.5357,4237.3,4237.2,0.7484]
[1754846478164,1.5357,4237.3,4236.9,0.9019]
[1754846478361,0.47196,4237.4,4237.0,0.3245]
[1754846478565,1.5357,4237.1,4237.0,0.3245]
[1754846478766,1.5357,4237.1,4237.0,0.5798]
[1754846479370,1.5357,4237.1,4237.0,0.7485]
[1754846479559,1.5357,4237.1,4237.0,0.8539]
[1754846482466,1.5357,4237.1,4237.0,0.3245]
[1754846482672,1.5357,4236.8,4236.7,0.47201]
[1754846483167,1.5357,4236.8,4236.7,0.79661]
[1754846483769,1.5357,4236.8,4236.7,0.47201]
[1754846483971,1.1798,4237.6,4236.5,0.47203]
[1754846483972,0.626,4236.6,4236.5,0.47203]
[1754846484168,0.7489645,4237.0,4235.9,1.69327103]
[1754846484169,0.626,4236.4,4235.9,1.69327103]
[1754846484370,0.626,4236.1,4236.0,0.47209]
[1754846484564,1.5357,4236.1,4236.0,0.47209]
[1754846485265,0.7489645,4236.5,4235.7,1.69327103]
[1754846485266,1.5357,4236.0,4235.8,0.79671]
[1754846485576,1.5357,4235.6,4235.4,1.69327103]
[1754846485776,0.626,4235.6,4235.4,0.47215]
[1754846485971,1.5357,4235.5,4235.4,0.47215]
[1754846486375,1.5357,4235.4,4235.3,1.05206]
[1754846486574,1.5357,4235.4,4235.3,1.22076]
[1754846486868,1.53230168,4235.4,4235.3,1.22556]
[1754846488067,1.53230168,4235.4,4235.3,1.33096]
[1754846488868,1.53230168,4235.4,4235.3,1.22556]
[1754846489064,1.53230168,4235.4,4235.3,0.47216]
[1754846489473,1.53230168,4235.4,4235.3,0.79676]
[1754846489673,1.53230168,4235.4,4235.3,1.05206]
[1754846489874,1.53230168,4235.4,4235.3,1.22556]
[1754846490177,1.53230168,4235.4,4235.3,1.33096]
[1754846490570,1.53230168,4235.4,4235.3,0.47216]
[1754846490971,1.5357,4235.3,4235.2,1.05687]
[1754846491171,1.5357,4235.3,4235.2,1.33097]
[1754846492778,1.5357,4235.3,4235.2,1.22557]
[1754846492981,1.5357,4235.3,4235.2,1.33097]
[1754846493169,1.5357,4235.3,4235.2,1.22557]
[1754846493370,1.5357,4235.3,4235.2,1.33097]
[1754846494284,0.2545,4235.3,4235.2,1.33097]
[1754846495003,0.6966,4235.3,4235.2,1.33097]
[1754846495179,1.5357,4235.3,4235.2,1.33097]
[1754846496681,0.4456,4235.7,4235.6,1.33484]
[1754846497179,1.1383,4235.7,4235.6,1.33484]
[1754846497371,1.5299,4235.7,4235.6,1.33484]
[1754846498986,1.5299,4235.7,4235.6,0.7565]
[1754846499178,1.5299,4235.7,4235.6,0.5806]
[1754846500384,1.5299,4235.7,4235.6,0.8627]
[1754846503182,1.5299,4235.4,4235.3,0.47216]
[1754846503488,1.5299,4235.4,4235.3,1.33486]
[1754846506682,1.5299,4235.4,4235.3,1.22266]
[1754846506881,1.5299,4235.4,4235.3,1.05276]
[1754846508590,1.5299,4235.4,4235.3,1.33486]
[1754846509288,0.2558,4235.4,4235.3,1.33486]
[1754846509488,0.5223,4235.4,4235.3,1.33486]
[1754846510189,0.7014,4235.4,4235.3,1.33486]
[1754846510382,1.5299,4235.4,4235.3,1.33486]
[1754846513389,1.5299,4235.4,4235.3,2.92193103]
[1754846513787,0.2558,4236.0,4235.4,1.18038]
[1754846513986,1.5299,4235.6,4235.5,0.47214]
[1754846514188,0.2623,4235.4,4235.3,2.16542103]
[1754846514494,1.5299,4235.4,4235.3,0.47215]
[1754846514688,1.5299,4235.4,4235.1,0.3257]
[1754846514689,1.5299,4235.4,4235.2,0.47216]
[1754846514885,1.18014,4236.3,4234.8,0.47222]
[1754846514886,0.9139,4235.1,4234.8,0.47222]
[1754846515092,0.616,4234.8,4234.6,0.47223]
[1754846515289,1.5299,4234.7,4234.6,0.47223]
[1754846516089,1.5299,4234.6,4234.5,0.47224]
[1754846516294,1.5299,4234.6,4234.5,1.33494]
[1754846516490,0.5223,4234.6,4234.5,1.33494]
[1754846516694,0.2558,4234.6,4234.5,1.33494]
[1754846517094,0.5223,4234.6,4234.5,1.33494]
[1754846517695,0.7014,4234.6,4234.5,1.33494]
[1754846519290,0.8825,4235.6,4235.5,0.47213]
[1754846519488,1.5299,4235.6,4235.5,0.47213]
[1754846519690,1.5299,4235.6,4235.5,1.05273]
[1754846519992,1.5299,4235.6,4235.5,1.33483]
[1754846520691,1.1383,4235.6,4235.5,1.22863]
[1754846520891,1.5299,4235.6,4235.5,1.33483]
[1754846521494,1.5299,4235.5,4235.4,0.47214]
[1754846523689,0.9139,4235.4,4235.0,1.6981811]
[1754846523894,1.5299,4235.1,4235.0,2.1703711]
[1754846525086,1.5299,4235.1,4235.0,3.0330711]
[1754846525891,0.2558,4235.1,4235.0,3.0330711]
[1754846526190,0.2558,4235.1,4235.0,3.0367711]
[1754846526789,0.2558,4235.1,4235.0,3.0330711]
[1754846527123,0.5311,4235.1,4235.0,3.0330711]
[1754846527497,0.7107,4235.1,4235.0,3.0330711]
[1754846527985,0.2753,4235.7,4235.5,0.1698]
[1754846528189,0.5393,4235.6,4235.5,0.4496]
[1754846528493,2.4856512,4236.9,4235.7,1.18027]
[1754846528494,0.5393,4236.2,4235.7,1.18027]
[1754846528795,1.5579,4236.2,4236.1,1.35336]
[1754846529192,0.264,4236.2,4236.1,1.35336]
[1754846529385,0.264,4236.2,4236.1,1.35706]
[1754846530384,0.5435484,4237.3,4236.5,0.2739]
[1754846530584,1.1735,4237.0,4236.9,1.07147]
[1754846530800,1.5579,4237.0,4236.9,0.5995]
[1754846531096,0.6342,4237.0,4236.8,0.47198]
[1754846531297,1.2866,4236.9,4236.8,0.92158]
[1754846531497,1.5579,4236.9,4236.8,1.02768]
[1754846531698,1.5579,4236.9,4236.8,1.35328]
[1754846531994,1.5579,4236.5,4236.4,0.47202]
[1754846532389,1.5579,4236.5,4236.4,1.07742]
[1754846532587,1.5579,4236.5,4236.4,1.35332]
[1754846533797,1.5579,4236.5,4236.4,0.47202]
[1754846533999,1.5579,4236.5,4236.4,1.07152]
[1754846534504,1.5579,4236.5,4236.4,1.24722]
[1754846535292,0.264,4236.5,4236.4,1.35332]
[1754846535801,0.264,4236.5,4236.4,1.35702]
[1754846536100,1.5579,4236.5,4236.4,1.35332]
[1754846537203,0.264,4236.5,4236.4,1.35702]
[1754846539106,1.5579,4236.5,4236.4,1.35332]
[1754846539608,0.264,4236.5,4236.4,1.35332]
[1754846539809,0.264,4236.5,4236.4,1.35702]
[1754846540303,0.7189,4236.5,4236.4,1.35332]
[1754846540501,1.1735,4236.5,4236.4,1.35332]
[1754846540701,1.5579,4236.5,4236.4,1.35332]
[1754846544212,0.4436,4237.3,4237.2,0.47194]
[1754846544510,0.264,4237.3,4237.2,1.35324]
[1754846544816,0.264,4237.3,4237.2,1.35694]
[1754846545111,1.5579,4238.0,4237.9,0.8813]
[1754846545500,2.02975,4238.0,4237.9,0.8813]
[1754846545901,2.02975,4238.0,4237.9,0.5995]
[1754846546107,2.0298,4237.6,4237.5,0.5557]
[1754846546608,2.0298,4237.6,4237.5,0.8813]
[1754846547308,1.5579,4237.6,4237.5,0.8813]
[1754846547911,1.1735,4237.6,4237.5,0.8813]
[1754846549106,1.5579,4237.6,4237.5,0.8813]
[1754846549304,0.4436,4237.6,4237.5,0.8813]
[1754846549500,1.1735,4237.6,4237.5,0.8813]
[1754846549705,1.5579,4237.6,4237.5,0.8813]
[1754846550512,1.5579,4237.6,4237.5,0.7693]
[1754846551213,1.5579,4237.6,4237.5,0.5995]
[1754846551507,0.3629,4237.0,4236.9,0.47197]
[1754846551713,1.5579,4237.0,4236.9,1.07147]
[1754846552012,1.5579,4237.0,4236.9,0.5995]
[1754846552213,1.5579,4236.7,4236.6,0.5985]
[1754846552717,1.17975,4237.6,4236.4,1.07052]
[1754846552718,0.8982,4236.5,4236.4,1.07052]
[1754846552912,0.8982,4236.5,4236.4,1.34942]
[1754846552913,1.5579,4236.5,4236.4,1.34942]
[1754846553311,1.5579,4236.5,4236.4,0.8774]
[1754846553512,1.5579,4236.5,4236.4,0.5985]
[1754846554107,0.4546,4236.3,4235.9,1.6981811]
[1754846554407,1.5579,4236.0,4235.9,0.2739]
[1754846554608,0.6342,4236.0,4235.7,0.79671]
[1754846554807,1.5579,4235.8,4235.7,1.02491]
[1754846555413,1.5579,4235.8,4235.7,1.34971]
[1754846556230,1.5579,4235.8,4235.4,1.6981811]
[1754846556231,1.5579,4235.8,4235.4,1.8037811]
[1754846556515,1.552,4235.6,4235.5,0.2612]
[1754846556717,1.552,4235.6,4235.5,0.586]
[1754846557012,1.552,4235.6,4235.5,0.8656]
[1754846557614,1.552,4235.6,4235.5,0.76]
[1754846557813,1.552,4235.6,4235.5,0.8656]
[1754846558508,1.552,4235.6,4235.5,0.586]